fUSD/lending_fUSD_20250322
["ID","MTS","AMOUNT","RATE_DAILY","PERIOD"]
[356561022,1742673042322,-500.0,0.0002947,2]
[356561023,1742673042331,-500.0,0.0002947,2]
[356561024,1742673042340,-500.0,0.0002947,2]
[356561025,1742673042350,-500.0,0.0002947,2]
[356561026,1742673042359,-500.0,0.0002947,2]
[356561027,1742673042370,-500.0,0.0002947,2]
[356561029,1742673042381,-500.0,0.0002947,2]
[356561030,1742673042395,-500.0,0.0002947,2]
[356561032,1742673042407,-500.0,0.0002947,2]
[356561034,1742673042419,-500.0,0.0002947,2]
[356561035,1742673042432,-500.0,0.0002947,2]
[356561036,1742673042442,-500.0,0.0002947,2]
[356561037,1742673042453,-500.0,0.0002947,2]
[356561038,1742673042465,-500.0,0.0002947,2]
[356561039,1742673042476,-500.0,0.0002947,2]
[356561040,1742673042487,-500.0,0.0002947,2]
[356561041,1742673042498,-500.0,0.0002947,2]
[356561042,1742673042510,-500.0,0.0002947,2]
[356561043,1742673042521,-500.0,0.0002947,2]
[356561044,1742673042533,-668.0,0.0002947,2]
[356561046,1742673042544,-500.0,0.0003,120]
[356561047,1742673042556,-500.0,0.00030422,2]
[356561049,1742673042566,-500.0,0.00030422,2]
[356561052,1742673042578,-508.0,0.00030422,2]
[356561054,1742673042589,-678.0,0.00030422,2]
[356561055,1742673042599,-768.77288502,0.00030609,3]
[356561056,1742673042609,-444.41,0.00030661,2]
[356561057,1742673042620,-346.02,0.00030661,2]
[356561058,1742673042633,-442.27,0.00030661,2]
[356561059,1742673042645,-293.79,0.00030661,2]
[356561060,1742673042657,-150.0,0.00030661,2]
[356561061,1742673042669,-301.83,0.00030661,2]
[356561062,1742673042683,-300.0,0.00030661,2]
[356561064,1742673042696,-150.0,0.00030661,2]
[356561066,1742673042709,-150.0,0.00030661,2]
[356561068,1742673042722,-150.0,0.00030661,2]
[356561071,1742673042734,-346.02,0.00030661,2]
[356561072,1742673042746,-150.0,0.00030661,2]
[356561073,1742673042757,-442.27,0.00030661,2]
[356561074,1742673042772,-442.27,0.00030661,2]
[356561075,1742673042784,-150.0,0.00030661,2]
[356561076,1742673042796,-150.0,0.00030661,2]
[356561077,1742673042808,-345.61,0.00030661,2]
[356561078,1742673042821,-150.0,0.00030661,2]
[356561079,1742673042833,-258.45691063,0.000309,2]
[356561080,1742673042845,-500.0,0.00031,120]
[356561081,1742673042856,-2090.29092035,0.00031233,2]
[356561082,1742673042867,-1000.0,0.00031297,2]
[356561083,1742673042879,-1000.0,0.00031378,2]
[356561084,1742673042892,-150.0,0.00031433,2]
[356561085,1742673042902,-280.82236729,0.00031453,2]
[356561086,1742673042913,-155487.72772515,0.000315,3]
[356561087,1742673042927,-629.23687052,0.000315,3]
[356561095,1742673043191,-1051.91736548,0.000315,3]
[356561097,1742673043204,-5766.17478965,0.000315,3]
[356561100,1742673043216,-10632.41659197,0.000315,3]
[356561105,1742673044583,-578.07866336,0.000315,3]
[356561106,1742673044595,-2745.4001,0.000315,3]
[356561107,1742673044606,-7605.72871212,0.000315,3]
[356561116,1742673045715,-2733.36047481,0.000315,3]
[356561117,1742673045727,-8434.1,0.000315,3]
[356561301,1742674232002,-250.0,0.00011,2]
[356561302,1742674232014,-1141.08289891,0.00011809,2]
[356561303,1742674232026,-401.00048509,0.00011809,2]
[356561304,1742674232035,-150.0,0.00011869,2]
[356561305,1742674232046,-150.0,0.00011899,2]
[356561306,1742674232055,-201.78633101,0.000119,2]
[356561307,1742674232066,-427.97595981,0.000119,2]
[356561308,1742674232078,-638.93927412,0.000119,2]
[356561309,1742674232095,-640.714872,0.000119,2]
[356561310,1742674232107,-13166.58436879,0.000119,2]
[356561311,1742674232118,-523.67626814,0.000119,2]
[356561312,1742674232130,-3958.59999998,0.000119,2]
[356561313,1742674232141,-13131.133301,0.000119,2]
[356561314,1742674232152,-370.04022624,0.000119,2]
[356561315,1742674232163,-23323.54838434,0.000119,2]
[356561316,1742674232180,-610.0,0.000119,2]
[356561317,1742674232191,-269.22055786,0.000119,2]
[356561320,1742674237739,-604.71309673,0.000119,2]
[356561321,1742674237753,-8258.83465998,0.000119,2]
[356561322,1742674237763,-155.07706447,0.000119,2]
[356561323,1742674237773,-150.0,0.00012117,2]
[356561324,1742674237782,-172.0,0.00012982,2]
[356561325,1742674237791,-150.0,0.00013023,2]
[356561326,1742674237801,-7036.56128385,0.0001839,2]
[356561327,1742674237810,-150.0,0.00019178,2]
[356561328,1742674237820,-500.0,0.0002,2]
[356561329,1742674237830,-350.0,0.00020548,2]
[356561330,1742674237840,-999.99,0.00020951,2]
[356561331,1742674237850,-150.99,0.00020951,2]
[356561332,1742674237860,-233.0,0.000227,2]
[356561333,1742674237869,-266.67596835,0.000249,2]
[356561334,1742674237878,-266.67596835,0.000249,2]
[356561335,1742674237888,-369.0,0.00025,2]
[356561336,1742674237897,-751.0,0.00025,2]
[356561337,1742674237907,-1116.222,0.00025919,11]
[356561338,1742674237917,-229.26044205,0.00026251,2]
[356561339,1742674237926,-178.31,0.00026849,2]
[356561340,1742674237935,-313.8384,0.000279,2]
[356561341,1742674237945,-365.916974,0.000279,2]
[356561342,1742674237961,-1200.0,0.000279,2]
[356561343,1742674237972,-2.270526,0.000279,2]
[356561344,1742674237982,-2054.6227,0.000279,2]
[356561345,1742674237991,-16395.79558666,0.00028,2]
[356561346,1742674238003,-2115.47849276,0.00028,2]
[356561347,1742674238015,-257.26787767,0.00028,2]
[356561348,1742674238026,-2274.40999996,0.00028,2]
[356561349,1742674238042,-1217.63557993,0.00028,2]
[356561359,1742674240044,-1296.03000004,0.00028,2]
[356561360,1742674240056,-14173.82114986,0.00028,2]
[356561361,1742674240066,-190.08,0.00028077,2]
[356561362,1742674240075,-203.31707517,0.000283,5]
[356561363,1742674240085,-3855.13623161,0.00028523,2]
[356561364,1742674240094,-188.4686759,0.00028585,4]
[356561365,1742674240103,-1114.42,0.00029256,2]
[356561366,1742674240112,-22438.27,0.00029448,2]
[356561367,1742674240122,-1000.0,0.00029449,2]
[356561368,1742674240131,-168.15,0.00029757,2]
[356561369,1742674240140,-597.8,0.00029764,3]
[356561370,1742674240150,-538.36,0.00029774,2]
[356561371,1742674240159,-243.56,0.00030005,2]
[356561372,1742674240168,-13345.73,0.00030094,2]
[356561373,1742674240177,-651.43,0.00030177,2]
[356561374,1742674240186,-500.0,0.00030247,2]
[356561375,1742674240196,-514.61,0.00030283,2]
[356561376,1742674240205,-514.61,0.00030347,2]
[356561377,1742674240215,-514.61,0.00030411,2]
[356561378,1742674240225,-514.61,0.00030474,2]
[356561379,1742674240234,-514.61,0.00030538,2]
[356561380,1742674240244,-200.0,0.0003056,2]
[356561381,1742674240253,-514.61,0.00030602,2]
[356561382,1742674240263,-514.61,0.00030666,2]
[356561383,1742674240272,-514.61,0.00030729,2]
[356561384,1742674240282,-514.61,0.00030793,2]
[356561385,1742674240291,-514.61,0.00030857,2]
[356561386,1742674240300,-1106.72663865,0.0003087,2]
[356561387,1742674240310,-1050.70804152,0.0003087,2]
[356561388,1742674240319,-514.61,0.00030921,2]
[356561389,1742674240330,-514.61,0.00030985,2]
[356561390,1742674240339,-2627.26867825,0.0003103,2]
[356561391,1742674240349,-514.61,0.00031048,2]
[356561392,1742674240359,-514.61,0.00031112,2]
[356561393,1742674240368,-514.61,0.00031176,2]
[356561394,1742674240377,-514.61,0.0003124,2]
[356561395,1742674240387,-514.61,0.00031303,2]
[356561396,1742674240397,-514.61,0.00031367,2]
[356561397,1742674240406,-266.67596835,0.000314,2]
[356561398,1742674240416,-514.61,0.00031431,2]
[356561399,1742674240425,-2500.0,0.00031435,2]
[356561400,1742674240436,-172.61321,0.00031453,48]
[356561401,1742674240446,-514.61,0.00031495,2]
[356561402,1742674240456,-24001.43929622,0.000315,3]
[356561403,1742674240466,-2000.0,0.000315,2]
[356561404,1742674240475,-5866.5195216,0.00031513,2]
[356561405,1742674240485,-10519.6788305,0.00031513,2]
[356561406,1742674240495,-150.0,0.00031557,2]
[356561407,1742674240504,-3190.48050749,0.00031583,2]
[356561408,1742674240515,-150.0,0.000316,8]
[356561409,1742674240524,-1199.6181,0.000316,2]
[356561410,1742674240534,-500.0,0.00032,120]
[356561411,1742674240543,-564.18,0.00032268,2]
[356561412,1742674240553,-651.43,0.00032441,2]
[356561413,1742674240562,-500.0,0.000325,120]
[356561414,1742674240572,-178.31,0.00032646,2]
[356561415,1742674240581,-503.60612025,0.0003275,5]
[356561416,1742674240589,-1000.0,0.00032759,2]
[356561417,1742674240599,-250.0,0.00032893,2]
[356561418,1742674240609,-200.32,0.00032898,120]
[356561419,1742674240618,-166.1,0.00032911,2]
[356561420,1742674240627,-150.0,0.00032929,7]
[356561421,1742674240636,-173.05445415,0.00032958,7]
[356561422,1742674240646,-173.0055843,0.00032958,7]
[356561423,1742674240655,-301.1476943,0.00032958,7]
[356561424,1742674240664,-23900.0,0.00032959,2]
[356561425,1742674240674,-183.1,0.00032959,2]
[356561426,1742674240683,-500.0,0.00033,120]
[356561428,1742674240692,-1000.0,0.0003313,2]
[356561429,1742674240702,-500.0,0.00034,120]
[356561430,1742674240711,-578.57541352,0.000342,2]
[356561432,1742674241704,-413.405,0.000342,2]
[356561433,1742674241716,-508.01958648,0.000342,2]
[356561434,1742674241725,-150.0,0.00034548,10]
[356561435,1742674241734,-651.43,0.00034705,2]
[356561436,1742674241743,-10858.88498037,0.000349,2]
[356561437,1742674241755,-2886.05971963,0.000349,2]
[356561438,1742674241765,-2078.25876021,0.0003499,2]
[356561439,1742674241776,-14539.17006599,0.0003499,2]
[356561440,1742674241785,-3493.89277897,0.00035,35]
[356561441,1742674241798,-15119.55,0.00035,35]
[356561466,1742674245931,-31386.55722103,0.00035,35]
[356561467,1742674245941,-500.0,0.00035,120]
[356561468,1742674245951,-155.0,0.0003589,2]
[356561469,1742674245960,-500.0,0.00036,120]
[356561470,1742674245969,-155.0,0.00036,2]
[356561471,1742674245978,-172.61321,0.00036453,48]
[356561472,1742674245987,-1000.0,0.00036811,2]
[356561473,1742674245997,-300.0,0.0003687,2]
[356561474,1742674246007,-627.08727615,0.000369,2]
[356561475,1742674246016,-651.43,0.00036969,2]
[356561476,1742674246026,-500.0,0.00037,120]
[356561477,1742674246034,-1500.0,0.00037,2]
[356561478,1742674246044,-200.32,0.0003701,120]
[356561479,1742674246053,-155.0,0.00037397,2]
[356561480,1742674246062,-500.0,0.000375,120]
[356561481,1742674246071,-627.0872761,0.00037733,2]
[356561482,1742674246082,-500.0,0.00038,120]
[356561483,1742674246091,-2000.0,0.00038356,30]
[356561484,1742674246101,-178.31,0.00038443,2]
[356561485,1742674246110,-627.0872761,0.00038567,2]
[356561486,1742674246119,-2000.0,0.00038568,30]
[356561487,1742674246129,-2000.0,0.00038779,30]
[356561488,1742674246138,-2000.0,0.0003899,30]
[356561489,1742674246148,-152.355,0.00039,120]
[356561490,1742674246157,-500.0,0.00039,120]
[356561491,1742674246166,-2000.0,0.00039202,30]
[356561492,1742674246176,-651.43,0.00039232,2]
[356561493,1742674246185,-160.0,0.00039267,14]
[356561494,1742674246194,-627.0872761,0.000394,2]
[356561495,1742674246203,-2000.0,0.00039413,30]
[356561496,1742674246212,-2000.0,0.00039624,30]
[356561497,1742674246221,-2000.0,0.00039836,30]
[356561498,1742674246230,-16617.4288262,0.0003989,3]
[356561499,1742674246239,-13751.1957,0.000399,2]
[356561500,1742674246248,-1000.0,0.000399,2]
[356561501,1742674246257,-500.0,0.000399,2]
[356561502,1742674246266,-717.52135924,0.000399,12]
[356561503,1742674246275,-16617.4288262,0.0003999,3]
[356561504,1742674246285,-16617.4288262,0.0003999,3]
[356561505,1742674246296,-50000.0,0.0004,40]
[356561506,1742674246305,-3060.0,0.0004,120]
[356561507,1742674246314,-500.0,0.0004,120]
[356561508,1742674246323,-2000.0,0.00040047,30]
[356561509,1742674246332,-627.0872761,0.00040233,15]
[356561510,1742674246342,-2000.0,0.00040258,30]
[356561511,1742674246352,-399.0,0.00040469,5]
[356561512,1742674246361,-2000.0,0.0004047,30]
[356561513,1742674246371,-1000.0,0.00040492,2]
[356561514,1742674246380,-2000.0,0.00040681,30]
[356561515,1742674246389,-2000.0,0.00040892,30]
[356561516,1742674246398,-16617.4288262,0.0004099,3]
[356561517,1742674246407,-50000.0,0.00041,41]
[356561518,1742674246416,-500.0,0.00041,120]
[356561519,1742674246426,-627.0872761,0.00041067,15]
[356561520,1742674246436,-150.0,0.00041096,2]
[356561521,1742674246448,-2000.0,0.00041104,30]
[356561522,1742674246457,-200.32,0.00041122,120]
[356561523,1742674246467,-16617.4288262,0.00041305,3]
[356561524,1742674246476,-2000.0,0.00041315,30]
[356561525,1742674246485,-172.61321,0.00041453,48]
[356561526,1742674246494,-651.43,0.00041496,2]
[356561527,1742674246503,-2000.0,0.00041526,30]
[356561528,1742674246513,-2000.0,0.00041738,30]
[356561529,1742674246523,-627.0872761,0.000419,15]
[356561530,1742674246532,-2000.0,0.00041949,30]
[356561531,1742674246542,-16617.4288262,0.0004199,3]
[356561532,1742674246552,-50000.0,0.00042,42]
[356561533,1742674246561,-500.0,0.00042,120]
[356561534,1742674246571,-152.0,0.00042148,3]
[356561535,1742674246580,-2000.0,0.0004216,30]
[356561536,1742674246589,-2000.0,0.00042372,30]
[356561537,1742674246598,-200.0,0.00042404,120]
[356561538,1742674246607,-5006.46,0.00042465,5]
[356561539,1742674246616,-16617.4288262,0.0004249,3]
[356561540,1742674246625,-500.0,0.000425,120]
[356561541,1742674246634,-2000.0,0.00042583,30]
[356561542,1742674246643,-204.0,0.000427,2]
[356561543,1742674246652,-627.0872761,0.00042733,15]
[356561544,1742674246661,-3000.0,0.0004278,60]
[356561545,1742674246670,-2000.0,0.00042795,30]
[356561546,1742674246680,-16617.4288262,0.0004299,3]
[356561547,1742674246689,-15786.8930957,0.0004299,3]
[356561548,1742674246698,-50000.0,0.00043,43]
[356561549,1742674246707,-500.0,0.00043,120]
[356561550,1742674246717,-2000.0,0.00043006,30]
[356561551,1742674246726,-2000.0,0.00043217,30]
[356561552,1742674246735,-3000.0,0.00043328,60]
[356561553,1742674246744,-16617.4288262,0.00043418,3]
[356561554,1742674246753,-2000.0,0.00043429,30]
[356561555,1742674246763,-500.0,0.0004347,7]
[356561556,1742674246772,-500.0,0.0004347,7]
[356561557,1742674246781,-500.2,0.0004347,7]
[356561558,1742674246791,-500.0,0.0004347,7]
[356561559,1742674246800,-507.41,0.0004347,7]
[356561560,1742674246809,-500.0,0.0004347,7]
[356561561,1742674246818,-500.0,0.0004347,7]
[356561562,1742674246828,-500.0,0.0004347,7]
[356561563,1742674246838,-500.0,0.0004347,7]
[356561564,1742674246847,-500.0,0.0004347,7]
[356561565,1742674246856,-179.41,0.0004347,7]
[356561566,1742674246866,-627.0872761,0.00043567,15]
[356561567,1742674246875,-2000.0,0.0004364,30]
[356561568,1742674246884,-15786.8930957,0.00043686,3]
[356561569,1742674246893,-5000.0,0.00043696,120]
[356561570,1742674246902,-222.0,0.00043735,2]
[356561571,1742674246911,-197.27320597,0.00043736,12]
[356561572,1742674246921,-651.43,0.0004376,2]
[356561573,1742674246930,-700.0,0.00043825,90]
[356561574,1742674246940,-700.0,0.00043825,90]
[356561575,1742674246950,-500.0,0.00043825,120]
[356561576,1742674246959,-500.0,0.00043825,120]
[356561577,1742674246969,-500.0,0.00043825,120]
[356561578,1742674246978,-500.0,0.00043825,120]
[356561579,1742674246987,-500.0,0.00043825,120]
[356561580,1742674246997,-21678.0611962,0.00043825,3]
[356561581,1742674247009,-21031.99913902,0.00043825,3]
[356561582,1742674247025,-727.03213288,0.00043825,3]
[356561869,1742675256226,800.0,0.000117,4]
[356561870,1742675258339,1700.0,0.000118,4]
[356561871,1742675260448,2600.0,0.000119,4]
[356561872,1742675277415,172204.77995455,0.0001,2]
[356561873,1742675277443,113131.70636296,0.0001,2]
[356561901,1742675432023,-540.097212,0.0001184,2]
[356561902,1742675432033,-150.0,0.0001187,2]
[356561903,1742675432043,-2500.0,0.000119,2]
[356561904,1742675432052,-803.30929574,0.000119,2]
[356561905,1742675432063,-1251.31340426,0.000119,2]
[356561906,1742675432073,-150.0,0.00011948,2]
[356561907,1742675432082,-210.80338601,0.00011999,2]
[356561908,1742675432092,-22430.50077816,0.00012,2]
[356561909,1742675432103,-12200.0,0.00012,2]
[356561910,1742675432114,-10335.35274793,0.00012,2]
[356561911,1742675432142,-1539.6573271,0.00012,2]
[356561923,1742675437948,-510.19615379,0.00012,2]
[356561924,1742675437960,-493.97951791,0.00012,2]
[356561925,1742675438004,-348091.05877952,0.00012,2]
[356561926,1742675438015,-52809.61873836,0.00012,2]
[356561927,1742675438061,-932.58255358,0.00012,2]
[356561928,1742675438247,-31185.5504714,0.00012,2]
[356561929,1742675438259,-1363.229,0.00012,2]
[356561930,1742675438271,-6224.572055,0.00012,2]
[356561931,1742675438282,-9547.37304,0.00012,2]
[356561932,1742675438299,-947.85652924,0.00012,2]
[356561934,1742675440098,-765.39496998,0.00012,2]
[356561935,1742675440110,-462.67420632,0.00012,2]
[356561936,1742675440121,-1900.45533965,0.00012,2]
[356561937,1742675440133,-11826.64617686,0.00012,2]
[356561938,1742675440208,-2549.05889236,0.00012,2]
[356561939,1742675440263,-242566.95577015,0.00012,2]
[356561940,1742675440275,-1759.83838304,0.00012,2]
[356561941,1742675440286,-1497.4590548,0.00012,2]
[356561942,1742675440479,-46907.949366,0.00012,2]
[356561943,1742675440600,-508.5915854,0.00012,2]
[356561947,1742675443010,-438.60309297,0.000119,2]
[356561948,1742675443066,-561.39690703,0.000119,2]
[356561949,1742675443076,-276833.07547848,0.00012,2]
[356561950,1742675443087,-128147.20679794,0.00012,2]
[356561951,1742675443098,-41294.69998397,0.00012,2]
[356561952,1742675443121,-4304.3,0.00012,2]
[356561953,1742675443132,-1001.27984127,0.00012,2]
[356561954,1742675443263,-890.58,0.00012,2]
[356561958,1742675444424,-665823.31830814,0.00012,2]
[356561959,1742675444445,-2639.32562113,0.00012,2]
[356561960,1742675446089,-288.57893742,0.00012,2]
[356561961,1742675446169,-454.12003927,0.00012,2]
[356561962,1742675446183,-423583.35318445,0.00012,2]
[356561963,1742675446193,-1049.0,0.0001264,2]
[356561964,1742675446203,-150.0,0.00013024,2]
[356561965,1742675446213,-151.0,0.00023615,2]
[356561966,1742675446228,-17.58096529,0.000245,2]
[356561967,1742675446245,-506.91903471,0.000245,2]
[356561968,1742675446257,-524.5,0.000246,2]
[356561969,1742675446272,-80300.49740878,0.000248,2]
[356561970,1742675446284,-476.87996005,0.000248,2]
[356561971,1742675446318,-429.94317,0.000248,2]
[356561972,1742675597557,-349.9373,0.000119,2]
[356561973,1742675617971,-172.1004613,0.000119,2]
[356561974,1742675627729,-300.0,0.000119,2]
[356561976,1742675635708,-239.75272861,0.000119,2]
[356561977,1742675640676,-166.79155609,0.000119,2]
[356561978,1742675678386,-300.0,0.000119,2]
[356561979,1742675681067,-971.417954,0.000119,2]
[356561981,1742675882474,-150.0,0.000119,2]
[356561982,1742675883736,-638.6511,0.000119,2]
[356561983,1742675903082,-150.0,0.00012495,2]
[356561984,1742675903105,-150.0,0.0001309,2]
[356561986,1742676003974,-150.0,0.00016279,2]
[356561987,1742676089597,-150.0,0.00016607,2]
[356561988,1742676089625,-150.0,0.00016936,2]
[356561989,1742676089652,-150.0,0.00017907,2]
[356561990,1742676089677,-350.0,0.00022533,3]
[356561991,1742676089701,-500.0,0.000247,2]
[356561992,1742676089724,-1000.0,0.000247,2]
[356561993,1742676089750,-150.56,0.00026849,2]
[356561994,1742676089775,-49.44,0.000279,2]
[356561996,1742676153265,-110.86,0.000279,2]
[356561997,1742676153288,-71.43544845,0.000291,3]
[356561998,1742676186525,-278.56455155,0.000291,3]
[356561999,1742676186548,-150.0,0.000291,2]
[356562000,1742676186570,-586.0,0.000303,2]
[356562001,1742676186591,-233.0,0.000303,2]
[356562002,1742676186612,-350.0,0.00030351,3]
[356562003,1742676186633,-150.0,0.00030351,2]
[356562004,1742676186654,-190.08,0.00030579,2]
[356562005,1742676186674,-350.0,0.0003069,3]
[356562006,1742676186695,-32.35544845,0.0003069,2]
[356562015,1742676632140,-966.0,0.000249,2]
[356562016,1742676632150,-369.0,0.000249,2]
[356562017,1742676632160,-350.0,0.0002739,3]
[356562018,1742676632169,-350.0,0.00027795,3]
[356562019,1742676632179,-350.0,0.00029936,3]
[356562020,1742676632188,-117.64455155,0.0003069,2]
[356562021,1742676632197,-298.9295,0.00031439,2]
[356562022,1742676632206,-892.977,0.00031539,29]
[356562023,1742676632215,-496.05691098,0.00031587,2]
[356562024,1742676632224,-400.0,0.00031598,2]
[356562025,1742676632235,-2224.76194639,0.00031599,30]
[356562026,1742676632255,-778.82933618,0.00031599,30]
[356562027,1742676632265,-1872.22072087,0.00031599,30]
[356562028,1742676632278,-36358.18799656,0.00031599,30]
[356562029,1742676632287,-152.06,0.00031974,2]
[356562030,1742676632296,-203.31707517,0.000339,6]
[356562031,1742676632306,-560.0,0.00034,2]
[356562032,1742676632316,-150.0,0.00034548,10]
[356562033,1742676632326,-500.0,0.000349,2]
[356562034,1742676632335,-423.42,0.0003509,2]
[356562035,1742676632345,-783.0,0.00036584,2]
[356562036,1742676632355,-2000.0,0.00036707,120]
[356562037,1742676632364,-250.0,0.00036708,2]
[356562038,1742676632374,-203.31707517,0.00037275,7]
[356562039,1742676632384,-423.42,0.00037354,2]
[356562040,1742676632393,-1000.0,0.0003781,2]
[356562041,1742676632402,-150.0,0.00038704,7]
[356562042,1742676632412,-200.32,0.00038746,120]
[356562043,1742676632423,-1097.0,0.00039364,5]
[356562044,1742676632432,-423.42,0.00039617,2]
[356562045,1742676632443,-23900.0,0.00039771,2]
[356562046,1742676632453,-200.0,0.00040274,2]
[356562048,1742676632463,-203.31707517,0.0004065,8]
[356562049,1742676632473,-155.0,0.00041,14]
[356562050,1742676632483,-150.0,0.00041096,2]
[356562051,1742676632492,-200.0,0.00041599,120]
[356562052,1742676632501,-423.42,0.00041881,2]
[356562053,1742676632510,-150.0,0.00041959,30]
[356562054,1742676632520,-242.86209085,0.00041959,30]
[356562055,1742676632529,-150.0,0.00041959,30]
[356562056,1742676632539,-428.18072791,0.00041959,30]
[356562057,1742676632548,-1706.65814218,0.00041959,30]
[356562058,1742676632558,-5000.0,0.00042,15]
[356562059,1742676632567,-1536.0,0.00042356,5]
[356562060,1742676632577,-175.1541028,0.00042447,4]
[356562061,1742676632586,-1000.0,0.00042536,2]
[356562063,1742676632595,-155.0,0.00043151,90]
[356562065,1742676632605,-200.0,0.00043199,120]
[356562067,1742676632614,-600.0,0.000433,15]
[356562069,1742676632623,-1200.0,0.000434,15]
[356562071,1742676632633,-788.09593071,0.000434,5]
[356562073,1742676632645,-1573.5,0.000434,16]
[356562075,1742676632654,-500.0,0.000434,2]
[356562076,1742676632663,-1000.0,0.000434,2]
[356562077,1742676632673,-529.7944,0.000434,2]
[356562078,1742676632682,-669.68660206,0.00043479,15]
[356562079,1742676632691,-1096.80832487,0.00043479,15]
[356562080,1742676632701,-83205.0262611,0.0004349,3]
[356562081,1742676632711,-1096.80832481,0.00043492,15]
[356562082,1742676632720,-172.7682563,0.00043499,31]
[356562083,1742676632730,-1000.0,0.00043499,120]
[356562084,1742676632740,-207.18473789,0.00043499,31]
[356562085,1742676632749,-219976.46239125,0.000435,3]
[356562086,1742676632765,-2362.15462059,0.000435,3]
[356562087,1742676632776,-1348.16384016,0.000435,3]
[356562088,1742676632787,-712.02367317,0.000435,3]
[356562089,1742676632798,-1163.30639126,0.000435,3]
[356562090,1742676632809,-1184.17281378,0.000435,3]
[356562091,1742676632820,-645.98250501,0.000435,3]
[356562092,1742676632835,-1997.21734795,0.000435,3]
[356562094,1742676638371,-148702.95715411,0.000435,3]
[356562095,1742676638381,-1800.0,0.000435,15]
[356562096,1742676638391,-1096.80832481,0.00043506,15]
[356562097,1742676638400,-1096.80832481,0.00043519,15]
[356562098,1742676638410,-1096.80832481,0.00043533,15]
[356562099,1742676638420,-1096.80832481,0.00043546,15]
[356562100,1742676638429,-1096.80832481,0.0004356,15]
[356562101,1742676638439,-16641.0052522,0.00043569,3]
[356562102,1742676638448,-1096.80832481,0.00043573,15]
[356562103,1742676638458,-33282.0105045,0.0004358,3]
[356562104,1742676638467,-1096.80832481,0.00043587,15]
[356562105,1742676638476,-34974.5538,0.0004359,2]
[356562106,1742676638486,-5000.0,0.0004359,120]
[356562108,1742676638495,-169.09131936,0.0004359,12]
[356562109,1742676638504,-158.82585471,0.000436,18]
[356562111,1742676638513,-193.38275891,0.000436,2]
[356562113,1742676638522,-2400.0,0.000436,15]
[356562115,1742676638532,-1096.80832481,0.000436,15]
[356562117,1742676638541,-268.7409703,0.000436,9]
[356562119,1742676638550,-218.6193617,0.000436,2]
[356562121,1742676638560,-16641.0052522,0.0004366,3]
[356562123,1742676638569,-16641.0052522,0.0004366,3]
[356562125,1742676638578,-66564.0210089,0.00043669,3]
[356562127,1742676638587,-83205.0262611,0.0004367,3]
[356562129,1742676638597,-49923.0157567,0.0004368,3]
[356562131,1742676638606,-500.0,0.00043689,120]
[356562133,1742676638615,-500.0,0.00043689,120]
[356562135,1742676638625,-500.0,0.00043689,120]
[356562136,1742676638635,-580.45,0.00043689,120]
[356562138,1742676638647,-635.0,0.00043689,7]
[356562140,1742676638657,-16641.0052522,0.0004369,3]
[356562142,1742676638667,-191.00170233,0.0004369,30]
[356562144,1742676638676,-207.71701827,0.00043699,31]
[356562146,1742676638686,-403.6796967,0.00043699,31]
[356562148,1742676638695,-427.60599726,0.00043699,31]